bitfinex/quotes_SOLUSD_20250811
["timestamp","ask_amount","ask_price","bid_price","bid_amount"]
[1754887253777,0.66,186.06,186.04,37.74]
[1754887254888,0.66,186.05,186.04,37.74]
[1754887255084,6.03447707,186.07,186.04,37.74]
[1754887255777,0.66,186.06,186.04,37.74]
[1754887256601,0.66,186.05,186.04,37.74]
[1754887258078,0.66,186.05,186.0,90.26]
[1754887258280,0.66,186.05,186.02,37.72]
[1754887258996,6.03500229,186.05,186.02,37.72]
[1754887259912,5.37463763,186.06,186.02,38.37]
[1754887260080,5.37431956,186.08,186.03,0.65]
[1754887260283,1e-08,186.1,186.04,0.65]
[1754887260493,0.66000001,186.1,186.05,37.72]
[1754887260990,1e-08,186.1,186.05,37.72]
[1754887261193,0.66,186.09,186.05,37.72]
[1754887262317,5.37403267,186.08,186.05,37.72]
[1754887262475,0.66,186.07,186.05,37.72]
[1754887262878,5.37403267,186.08,186.05,37.72]
[1754887262879,0.66,186.06,186.05,37.72]
[1754887263186,0.66,186.06,186.03,37.72]
[1754887263580,0.66,186.05,186.03,37.72]
[1754887263789,18.80911435,186.08,186.03,37.72]
[1754887263987,5.37461034,186.06,186.03,37.72]
[1754887264192,5.37461034,186.06,186.03,38.37]
[1754887264927,5.37461034,186.06,186.03,37.72]
[1754887265124,6.03461034,186.06,186.03,37.72]
[1754887265420,5.37461034,186.06,186.03,38.37]
[1754887265716,5.37461034,186.06,186.03,37.72]
[1754887265926,5.37461034,186.06,186.03,38.37]
[1754887266125,5.37432149,186.07,186.03,38.37]
[1754887266822,5.37432149,186.07,186.03,37.72]
[1754887267008,0.66,186.06,186.01,0.65]
[1754887267224,0.66,186.05,186.03,37.74]
[1754887268217,5.37518813,186.04,186.03,37.74]
[1754887269094,6.03518813,186.04,186.02,37.74]
[1754887269295,0.66,186.03,186.02,37.74]
[1754887269500,0.66,186.03,185.99,0.03]
[1754887269704,0.66,186.03,186.0,37.74]
[1754887269939,0.66,186.02,186.0,37.74]
[1754887270404,19.47315845,186.04,186.0,37.74]
[1754887270602,0.66,186.03,186.0,37.74]
[1754887270930,6.03576604,186.02,186.0,37.74]
[1754887271331,5.37576604,186.02,186.0,37.74]
[1754887271525,0.66,186.01,185.99,0.03]
[1754887271736,0.66,186.01,185.99,37.81]
[1754887271935,0.66,186.0,185.99,0.03]
[1754887272948,6.03634408,186.0,185.99,0.03]
[1754887275560,5.37634408,186.0,185.99,0.03]
[1754887277276,18.81315845,186.04,185.99,0.03]
[1754887277565,0.66,186.02,185.99,0.03]
[1754887277762,19.47315845,186.04,185.99,0.68]
[1754887278337,0.66,186.03,185.99,0.03]
[1754887278750,0.66,186.02,185.99,0.03]
[1754887279162,18.81315845,186.04,186.0,0.65]
[1754887279367,5.37518813,186.04,186.0,38.39]
[1754887280475,6.03461034,186.06,186.01,0.65]
[1754887280776,6.03461034,186.06,186.0,38.39]
[1754887280777,0.66,186.05,186.0,38.39]
[1754887281582,5.37517214,186.05,186.01,0.65]
[1754887282369,0.06,186.08,186.02,0.65]
[1754887282978,0.72,186.08,186.02,0.65]
[1754887283479,6.09411653,186.08,186.02,0.65]
[1754887284245,0.66,186.07,186.0,38.39]
[1754887284750,0.66,186.07,186.01,5.0]
[1754887284951,0.66,186.07,186.01,5.65]
[1754887285468,5.37447443,186.07,186.02,0.65]
[1754887285667,5.43410775,186.08,186.03,0.65]
[1754887286174,5.43410775,186.08,186.04,0.65]
[1754887286356,5.43410775,186.08,186.04,38.41]
[1754887287280,0.06,186.08,186.04,38.41]
[1754887287485,0.72,186.08,186.04,38.41]
[1754887287784,0.06,186.08,186.05,0.65]
[1754887287944,0.06,186.08,186.06,0.65]
[1754887288902,0.06,186.08,186.04,43.1351595]
[1754887289063,0.06,186.08,186.05,0.65]
[1754887290472,0.06,186.08,186.05,6.02463382]
[1754887290669,0.06,186.08,186.06,0.67]
[1754887290902,0.06,186.08,186.07,26.0]
[1754887291195,0.06,186.08,186.07,41.10621557]
[1754887291399,0.06,186.08,186.07,41.77621557]
[1754887292482,0.06,186.08,186.07,84.89053706]
[1754887292680,0.06,186.08,186.05,15.10621557]
[1754887292889,0.06,186.08,186.07,37.74]
[1754887293262,0.06,186.08,186.07,52.84621557]
[1754887293493,0.06,186.08,186.07,79.51621557]
[1754887293693,0.06,186.08,186.07,80.05364771]
[1754887293911,0.06,186.08,186.07,85.05364771]
[1754887294613,0.06,186.08,186.07,90.4279692]
[1754887294993,0.06,186.08,186.07,64.4279692]
[1754887296492,0.06,186.08,186.07,52.6879692]
[1754887296696,0.06,186.08,186.07,64.4279692]
[1754887298279,0.06,186.08,186.07,64.4079692]
[1754887300102,1e-08,186.1,186.09,41.10621557]
[1754887300282,1e-08,186.1,186.09,79.36358995]
[1754887300609,1e-08,186.1,186.09,80.03358995]
[1754887300819,1e-08,186.1,186.09,85.40733383]
[1754887301705,0.65000001,186.1,186.09,104.70621557]
[1754887301908,0.65000001,186.1,186.09,142.42621557]
[1754887302112,1e-08,186.1,186.09,168.42621557]
[1754887302901,0.65000001,186.1,186.09,37.72]
[1754887304113,0.65000001,186.1,186.07,36.0]
[1754887304317,0.65000001,186.1,186.07,10.0]
[1754887304613,0.65000001,186.1,186.08,37.72]
[1754887304991,6.02354191,186.1,186.08,37.72]
[1754887305208,0.65,186.09,186.08,37.72]
[1754887307015,6.02374388,186.09,186.08,37.72]
[1754887307391,6.02374388,186.09,186.08,37.74]
[1754887307588,6.02374388,186.09,186.08,5.0]
[1754887316528,6.02374388,186.09,186.08,5.03]
[1754887322637,6.02374388,186.09,186.07,10.0]
[1754887322856,0.67,186.08,186.07,10.0]
[1754887323136,6.04374388,186.09,186.07,10.0]
[1754887324620,5.3735171,186.1,186.07,10.0]
[1754887324942,6.0435171,186.1,186.07,10.0]
[1754887325143,0.67,186.09,186.07,10.0]
[1754887325518,0.67,186.08,186.07,10.0]
[1754887326119,0.67000001,186.1,186.07,10.0]
[1754887326333,1e-08,186.1,186.07,10.0]
[1754887326529,1e-08,186.1,186.07,10.68]
[1754887327134,1e-08,186.1,186.08,0.68]
[1754887328015,1e-08,186.1,186.09,0.68]
[1754887329133,1e-08,186.1,186.07,47.72]
[1754887329643,1e-08,186.1,186.07,48.4]
[1754887329842,1e-08,186.1,186.08,0.68]
[1754887330230,1e-08,186.1,186.09,0.68]
[1754887330745,1e-08,186.1,186.08,0.68]
[1754887331732,1e-08,186.1,186.07,47.72]
[1754887334151,1e-08,186.1,186.07,48.4]
[1754887334722,1e-08,186.1,186.08,0.68]
[1754887335737,1e-08,186.1,186.07,47.72]
[1754887336048,0.67000001,186.1,186.07,47.72]
[1754887336426,0.67000001,186.1,186.07,10.0]
[1754887336626,0.67000001,186.1,186.08,37.72]
[1754887337042,6.04355367,186.1,186.08,37.72]
[1754887337232,0.67,186.09,186.07,10.0]
[1754887337443,0.67,186.09,186.07,47.72]
[1754887337731,0.67,186.08,186.07,47.72]
[1754887338346,6.04355367,186.1,186.07,47.72]
[1754887338649,0.67,186.09,186.07,47.72]
[1754887338831,0.67,186.08,186.07,47.72]
[1754887339236,0.67,186.08,186.07,10.0]
[1754887340725,0.67000001,186.1,186.07,10.0]
[1754887340951,5.37374388,186.09,186.07,10.0]
[1754887342362,0.67,186.08,186.07,10.0]
[1754887344265,6.04403267,186.08,186.07,10.0]
[1754887354772,5.37403267,186.08,186.07,10.0]
[1754887355576,5.37374388,186.09,186.07,10.0]
[1754887355774,0.66,186.08,186.07,10.0]
[1754887357783,32.03403267,186.08,186.07,10.0]
[1754887358878,31.37403267,186.08,186.07,10.0]
[1754887360171,31.37403267,186.08,186.07,10.03]
[1754887360371,31.43403267,186.08,186.07,10.03]
[1754887361086,32.09403267,186.08,186.07,10.03]
[1754887362676,32.09403267,186.08,186.06,0.03]
[1754887362881,0.66,186.07,186.06,0.03]
[1754887363489,38.38,186.07,186.06,0.03]
[1754887363986,33.58624867,186.08,186.06,0.03]
[1754887364190,5.43403267,186.08,186.06,0.72]
[1754887364379,5.43403267,186.08,186.06,0.03]
[1754887364580,5.43403267,186.08,186.07,0.69]
[1754887365197,5.43403267,186.08,186.06,0.03]
[1754887365397,5.43403267,186.08,186.06,0.72]
[1754887366397,0.06,186.08,186.07,0.69]
[1754887366973,0.06,186.08,186.06,0.03]
[1754887368996,0.06,186.08,186.06,0.72]
[1754887369587,0.06,186.08,186.06,0.03]
[1754887371491,0.06,186.08,186.06,0.72]
[1754887371799,0.66000001,186.1,186.06,0.72]
[1754887371988,0.66000001,186.1,186.06,0.03]
[1754887372789,5.37374388,186.09,186.06,0.03]
[1754887372993,0.66,186.09,186.06,0.03]
[1754887374402,5.37403267,186.08,186.06,0.03]
[1754887375698,6.03403267,186.08,186.06,0.03]
[1754887376482,18.80709296,186.1,186.06,0.03]
[1754887376903,0.66,186.09,186.06,0.03]
[1754887377604,5.37432149,186.07,186.06,0.03]
[1754887380883,6.06432149,186.07,186.06,0.03]
[1754887388794,26.0,186.05,186.04,0.03]
[1754887389008,27.34494103,186.05,186.04,0.03]
[1754887389326,26.69,186.05,186.04,0.03]
[1754887389618,32.06489922,186.05,186.04,0.03]
[1754887389923,32.06489922,186.05,186.03,1e-08]
[1754887390289,0.69,186.04,186.03,1e-08]
[1754887390607,26.0,186.0,185.97,0.03]
[1754887390795,26.69,186.0,185.97,0.03]
[1754887391613,32.06634408,186.0,185.97,0.03]
[1754887392213,5.37634408,186.0,185.97,0.03]
[1754887392424,5.37634408,186.0,185.99,0.71]
[1754887393699,5.37576604,186.02,185.99,0.71]
[1754887393922,0.69,186.01,185.99,0.03]
[1754887394116,5.37576604,186.02,185.99,0.03]
[1754887394731,6.06576604,186.02,185.99,0.03]
[1754887396111,5.37576604,186.02,185.99,0.03]
[1754887396307,5.37634408,186.0,185.99,0.03]
[1754887398325,5.37605505,186.01,185.99,0.03]
[1754887399021,6.06605505,186.01,185.99,0.03]
[1754887400233,0.69,186.01,185.99,0.03]
[1754887400423,6.06629398,186.01,185.99,0.03]
[1754887400920,37.72,186.03,185.99,0.03]
[1754887400921,43.09569892,186.03,185.99,0.03]
[1754887401220,43.09569892,186.03,186.0,0.68]
[1754887401398,5.37569892,186.03,186.0,0.68]
[1754887402425,5.37518813,186.04,186.0,0.68]
[1754887402799,6.06518813,186.04,186.0,0.68]
[1754887403197,6.06518813,186.04,185.99,0.03]
[1754887403430,6.06518813,186.04,185.99,0.71]
[1754887403821,6.06518813,186.04,186.0,0.68]
[1754887405115,5.37518813,186.04,185.99,0.03]
[1754887405426,5.37576604,186.02,185.99,0.71]
[1754887406629,5.37576604,186.02,186.0,0.03]
[1754887409515,6.06552433,186.03,186.0,0.03]
[1754887410220,13.43679323,186.06,186.0,0.03]
[1754887410221,0.65,186.06,186.01,0.68]
[1754887410416,0.65,186.06,186.02,0.68]
[1754887410803,38.43,186.08,186.02,0.68]
[1754887411007,0.65,186.07,186.02,0.68]
[1754887411208,5.37432149,186.07,186.02,0.68]
[1754887411432,0.65,186.06,186.02,0.68]
[1754887413235,5.37489922,186.05,186.01,37.72]
[1754887413538,5.37489922,186.05,186.01,38.4]
[1754887414034,5.37489922,186.05,186.01,37.72]
[1754887414236,0.65,186.04,186.01,37.72]
[1754887414633,0.65,186.03,186.01,37.72]
[1754887415636,0.65,186.02,186.01,37.72]
[1754887416315,5.37553348,186.03,186.01,37.72]
[1754887416637,5.37432149,186.07,186.02,0.68]
[1754887417731,0.65,186.07,186.03,0.68]
[1754887418054,0.65,186.06,186.01,37.72]
[1754887418335,0.65,186.06,186.01,38.4]
[1754887418520,0.65,186.05,186.01,37.72]
[1754887418728,0.65,186.04,186.01,37.72]
[1754887419723,0.06,186.08,186.01,37.72]
[1754887419724,5.37576604,186.02,186.01,37.72]
[1754887420028,5.37556309,186.03,186.0,0.03]
[1754887420241,0.65,186.02,186.0,0.03]
[1754887421027,6.02583425,186.02,186.0,0.03]
[1754887421431,0.65,186.01,186.0,0.03]
[1754887422830,5.37583425,186.02,186.0,0.03]
[1754887423023,6.02583425,186.02,186.0,0.03]
[1754887423228,0.65,186.01,186.0,0.03]
[1754887425146,6.02605505,186.01,186.0,0.03]
[1754887426925,10.71405069,186.01,186.0,0.03]
[1754887429823,10.06405069,186.01,186.0,0.03]
[1754887430434,10.71405069,186.01,186.0,0.03]
[1754887430631,5.37605505,186.01,186.0,0.03]
[1754887430846,10.06405069,186.01,186.0,0.03]
[1754887431345,10.71405069,186.01,186.0,0.03]
[1754887433529,10.71405069,186.01,185.99,0.03]
[1754887433727,5.33799564,186.0,185.99,0.03]
[1754887434248,10.71433972,186.0,185.99,0.03]
[1754887434849,10.71433972,186.0,185.97,0.03]
[1754887435034,4.68799564,185.98,185.97,0.03]
[1754887435637,5.33799564,185.98,185.97,0.03]
[1754887436149,4.68799564,185.98,185.97,0.03]
[1754887436454,10.71491788,185.98,185.97,0.03]
[1754887438446,10.06491788,185.98,185.97,0.03]
[1754887439949,10.75491788,185.98,185.97,0.03]
[1754887440170,6.06692224,185.98,185.97,0.03]
[1754887440645,10.75491788,185.98,185.97,0.03]
[1754887444160,5.37658995,186.0,185.97,0.71]
[1754887444460,10.06458559,186.0,185.98,0.68]
[1754887445850,10.06458559,186.0,185.97,0.03]
[1754887446052,10.06458559,186.0,185.97,0.71]
[1754887446242,5.37658995,186.0,185.98,0.68]
[1754887449341,10.06414488,186.01,185.98,0.68]
[1754887449551,16.92585633,186.03,185.99,5.36799564]
[1754887449761,16.92585633,186.03,185.99,4.68799564]
[1754887449962,16.92585633,186.03,186.0,0.68]
[1754887450662,0.06,186.01,186.0,0.68]
[1754887450837,0.06,186.01,186.0,5.36799564]
[1754887452439,0.06,186.01,186.0,25.85055529]
[1754887455368,0.06,186.01,186.0,115.45055529]
[1754887456573,0.06,186.01,186.0,143.08621557]
[1754887456741,0.06,186.01,186.0,127.3]
[1754887456941,0.75,186.01,186.0,127.3]
[1754887457159,0.75,186.01,186.0,37.7]
[1754887458152,0.06,186.01,186.0,37.7]
[1754887459067,0.06,186.01,186.0,42.38799564]
[1754887459277,0.06,186.01,186.0,58.17421121]
[1754887460480,0.06,186.01,186.0,64.08818969]
[1754887460665,0.06,186.05,186.0,167.1290499]
[1754887460851,0.06,186.05,186.04,4.68799564]
[1754887461056,0.06,186.05,186.04,42.38799564]
[1754887461452,0.06,186.05,186.04,43.06799564]
[1754887462468,0.06,186.05,186.04,153.14939934]
[1754887463452,0.06,186.05,186.04,179.14939934]
[1754887463961,0.06,186.05,186.04,153.14939934]
[1754887465485,1e-08,186.05,186.04,153.14939934]
[1754887471151,1e-08,186.05,186.04,152.44939934]
[1754887473061,1e-08,186.05,186.04,153.14939934]
[1754887474388,1e-08,186.05,186.04,152.44939934]
[1754887475168,1e-08,186.05,186.04,168.38621557]
[1754887475486,1e-08,186.05,186.04,178.44939934]
[1754887479692,1e-08,186.05,186.04,140.76939934]
[1754887479902,1e-08,186.05,186.04,178.44939934]
[1754887480190,1e-08,186.05,186.04,179.14939934]
[1754887480403,1e-08,186.05,186.04,141.46939934]
[1754887480699,1e-08,186.05,186.04,153.14939934]
[1754887481381,0.06,186.08,186.07,41.10621557]
[1754887481584,0.06,186.08,186.07,84.01164335]
[1754887481897,0.06,186.08,186.07,89.38596484]
[1754887482091,0.72,186.08,186.07,89.38596484]
[1754887485272,0.72,186.08,186.07,84.01164335]
[1754887485504,0.72,186.08,186.07,83.47421121]
[1754887486191,0.72,186.08,186.07,88.8485327]
[1754887486693,0.72,186.08,186.07,88.8285327]
[1754887487097,0.72,186.08,186.07,84.14053706]
[1754887487291,0.72,186.08,186.07,178.4285327]
[1754887488194,0.72,186.08,186.07,173.05421121]
[1754887488393,0.72,186.08,186.07,135.39421121]
[1754887488592,0.72,186.08,186.07,173.05421121]
[1754887490712,6.09403267,186.08,186.07,89.6]
[1754887490883,6.09403267,186.08,186.07,127.26]
[1754887491082,6.09403267,186.08,186.07,37.66]
[1754887491677,0.72,186.08,186.07,37.66]
[1754887493404,0.72,186.08,186.07,43.03432149]
[1754887493605,0.06,186.08,186.07,47.72231713]
[1754887494509,0.06,186.08,186.07,58.14053706]
[1754887494719,0.06,186.08,186.07,62.8285327]
[1754887495405,0.06,186.08,186.07,63.5285327]
[1754887497095,0.06,186.08,186.07,62.8285327]
[1754887497901,0.06,186.08,186.07,63.5285327]
[1754887499496,0.06,186.08,186.07,58.84053706]
[1754887499708,0.06,186.08,186.07,62.8285327]
[1754887500105,0.06,186.08,186.07,58.14053706]
[1754887500305,0.76,186.08,186.06,0.53746103]
[1754887500509,0.76,186.08,186.04,89.63]
[1754887500510,4.68799564,186.07,186.04,0.03]
[1754887500694,5.44799564,186.08,186.05,37.66]
[1754887500898,0.7,186.07,186.05,37.66]
[1754887501917,0.7,186.07,186.05,47.7227642]
[1754887503403,0.06,186.08,186.06,4.68799564]
[1754887503619,0.06,186.08,186.07,57.45421121]
[1754887503992,0.06,186.08,186.07,62.8285327]
[1754887504392,0.06,186.08,186.07,58.14053706]
[1754887504615,0.06,186.08,186.07,62.8285327]
[1754887508021,0.06,186.08,186.07,152.4285327]
[1754887518260,0.06,186.08,186.07,152.4585327]
[1754887519630,0.06,186.08,186.07,179.1185327]
[1754887521340,0.06,186.08,186.07,153.1185327]
[1754887524545,0.06,186.08,186.07,152.4585327]
[1754887525245,0.76,186.08,186.07,152.4585327]
[1754887525956,0.06,186.08,186.07,152.4585327]
[1754887527754,0.76,186.08,186.07,152.4585327]
[1754887527938,0.76,186.08,186.07,178.4585327]
[1754887528136,0.06,186.08,186.07,152.4585327]
[1754887528435,0.06,186.08,186.07,178.4585327]
[1754887530561,0.06,186.08,186.07,179.1185327]
[1754887530758,0.06,186.08,186.07,153.1185327]
[1754887531156,0.06,186.08,186.07,152.4585327]
[1754887534802,0.06,186.08,186.07,153.1185327]
[1754887535002,1e-08,186.08,186.07,153.1185327]
[1754887535696,1e-08,186.09,186.07,155.80488621]
[1754887535890,1e-08,186.11,186.1,41.10621557]
[1754887536204,0.06,186.12,186.1,88.14220685]
[1754887536373,0.06,186.12,186.11,24.48220685]
[1754887536710,0.06,186.12,186.11,114.08220685]
[1754887536998,0.06,186.12,186.11,119.45537325]
[1754887537397,0.77,186.12,186.11,114.76737761]
[1754887537704,0.06,186.12,186.11,119.45537325]
[1754887538613,0.06,186.12,186.11,120.11537325]
[1754887539870,0.06,186.12,186.11,119.45537325]
[1754887540993,0.06,186.12,186.11,120.11537325]
[1754887542184,0.06,186.12,186.11,119.45537325]
[1754887542790,0.06,186.16,186.11,119.45537325]
[1754887542791,0.06,186.16,186.12,15.10621557]
[1754887542978,0.06,186.16,186.15,45.79421121]
[1754887543184,0.06,186.16,186.15,83.43421121]
[1754887544887,0.06,186.16,186.15,104.93622302]
[1754887545092,0.06,186.16,186.15,88.80622302]
[1754887545902,0.06,186.16,186.15,89.46622302]
[1754887546200,0.06,186.16,186.15,179.06622302]
[1754887549406,0.06,186.16,186.15,178.40622302]
[1754887549785,0.71,186.19,186.18,26.0]
[1754887549980,0.06,186.22,186.19,15.10621557]
[1754887550188,0.06,186.22,186.21,19.79421121]
[1754887550977,0.06,186.22,186.21,25.16449207]
[1754887550978,0.77,186.22,186.21,25.16449207]
[1754887551491,0.77,186.22,186.21,4.68799564]
[1754887554594,6.13999248,186.22,186.21,4.68799564]
[1754887555108,0.77,186.22,186.21,4.68799564]
[1754887555279,0.77,186.22,186.21,94.28799564]
[1754887558213,0.77,186.22,186.21,109.39421121]
[1754887564602,0.77,186.22,186.21,104.70621557]
[1754887565015,0.77,186.22,186.21,109.39421121]
[1754887569300,0.06,186.22,186.21,109.39421121]
[1754887572537,0.77,186.22,186.21,109.39421121]
[1754887576215,0.77,186.22,186.21,107.69667477]
[1754887578329,0.77,186.22,186.21,104.70621557]
[1754887578534,6.13999248,186.22,186.21,92.5904592]
[1754887578714,5.42999248,186.22,186.21,92.5904592]
[1754887579838,0.06,186.22,186.21,92.5904592]
[1754887588341,0.77,186.22,186.21,92.5904592]
[1754887590453,0.06,186.22,186.21,92.5904592]
[1754887590951,0.77,186.22,186.21,92.5904592]
[1754887591633,0.06,186.22,186.21,107.69667477]
[1754887592150,0.77,186.22,186.21,107.69667477]
[1754887593151,0.77,186.22,186.21,104.70621557]
[1754887593358,0.77,186.22,186.21,107.69667477]
[1754887595453,0.77,186.22,186.21,104.70621557]
[1754887595863,0.77,186.22,186.21,107.69667477]
[1754887596058,0.06,186.22,186.21,107.69667477]
[1754887597036,0.77,186.22,186.21,107.69667477]
[1754887600365,0.77,186.22,186.21,104.70621557]
[1754887600544,0.77,186.22,186.21,107.69667477]
[1754887601965,6.13999248,186.22,186.21,89.6]
[1754887602152,9.13045168,186.22,186.21,127.2]
[1754887602462,6.13999248,186.22,186.21,127.2]
[1754887602757,6.13999248,186.22,186.21,37.6]
[1754887605140,9.13045168,186.22,186.21,37.6]
[1754887605969,6.13999248,186.22,186.21,37.6]
[1754887606163,9.13045168,186.22,186.21,37.6]
[1754887607754,22.55543288,186.22,186.16,0.03]
[1754887608063,2.9904592,186.17,186.16,0.03]
[1754887608244,2.9904592,186.17,186.16,37.63]
[1754887608445,3.7004592,186.17,186.16,37.63]
[1754887609448,9.07189391,186.17,186.16,37.63]
[1754887612353,9.07189391,186.17,186.16,0.03]
[1754887615667,9.07189391,186.17,186.14,0.03]
[1754887615879,2.9904592,186.15,186.14,0.03]
[1754887616259,29.7004592,186.15,186.13,0.03]
[1754887616565,3.7004592,186.14,186.13,0.03]
[1754887617659,11.22404961,186.14,186.13,0.03]
[1754887617856,11.22404961,186.14,186.13,1e-08]
[1754887620394,23.18588641,186.14,186.12,1e-08]
[1754887620586,26.0,186.1,186.09,0.03]
[1754887620884,28.9904592,186.1,186.09,0.03]
[1754887621084,3.6604592,186.1,186.09,0.03]
[1754887621283,5.8119802,186.1,186.09,0.03]
[1754887621466,31.8119802,186.1,186.07,0.03]
[1754887621665,2.9904592,186.08,186.07,0.03]
[1754887622059,0.67,186.09,186.07,0.03]
[1754887622260,5.37403267,186.08,186.07,0.03]
[1754887623362,10.05707775,186.08,186.07,0.03]
[1754887623564,5.37376502,186.09,186.07,0.03]
[1754887623763,10.0568101,186.09,186.07,0.75]
[1754887624280,10.0568101,186.09,186.07,0.03]
[1754887625079,4.68304508,186.08,186.07,0.03]
[1754887625782,5.35304508,186.13,186.07,5.43304508]
[1754887626086,16.13467,186.14,186.1,4.68304508]
[1754887626282,4.68304508,186.16,186.11,5.40304508]
[1754887626468,4.68304508,186.14,186.08,43.71397224]
[1754887626667,4.68304508,186.14,186.09,5.40304508]
[1754887626985,5.35304508,186.15,186.1,5.40304508]
[1754887627370,4.68304508,186.15,186.11,0.72]
[1754887627676,4.68304508,186.16,186.12,0.72]
[1754887627903,5.35304508,186.16,186.12,0.72]
[1754887628080,4.68304508,186.16,186.1,4.68304508]
[1754887628378,4.74304508,186.14,186.09,0.72]
[1754887628577,0.67,186.13,186.09,5.40304508]
[1754887629073,0.06,186.14,186.12,4.68304508]
[1754887629278,0.06,186.14,186.12,5.40304508]
[1754887629787,0.06,186.14,186.12,4.68304508]
[1754887631091,0.06,186.14,186.12,5.40304508]
[1754887632870,0.06,186.14,186.13,5.40304508]
[1754887633068,0.06,186.14,186.12,4.68304508]
[1754887633582,0.06,186.14,186.12,5.40304508]
[1754887633972,0.06,186.14,186.1,0.72]
[1754887634173,0.73,186.14,186.1,0.72]
[1754887634374,0.73,186.14,186.12,4.68304508]
[1754887634781,0.67,186.13,186.1,4.68304508]
[1754887635288,5.37287771,186.12,186.1,4.68304508]
[1754887635475,5.37287771,186.12,186.1,5.40304508]
[1754887636284,5.43230041,186.14,186.1,5.40304508]
[1754887636485,5.43230041,186.14,186.11,5.40304508]
[1754887636789,5.43230041,186.14,186.08,63.62]
[1754887636790,0.06,186.14,186.13,4.68304508]
[1754887637394,0.06,186.14,186.13,5.40304508]
[1754887638777,0.06,186.14,186.13,26.4191086]
[1754887638980,0.06,186.14,186.13,52.4191086]
[1754887641876,0.06,186.16,186.15,26.0]
[1754887642086,0.06,186.16,186.15,83.92646183]
[1754887642287,0.06,186.16,186.15,84.64646183]
[1754887643176,0.06,186.16,186.15,90.01847364]
[1754887644698,0.06,186.18,186.16,15.10621557]
[1754887644883,0.06,186.18,186.17,20.32640412]
[1754887645393,0.06,186.18,186.17,58.62640412]
[1754887646097,0.06,186.18,186.17,63.99783883]
[1754887646497,0.06,186.18,186.17,153.59783883]
[1754887646699,0.06,186.2,186.19,15.10621557]
[1754887646907,0.06,186.2,186.19,152.1893915]
[1754887647088,0.06,186.2,186.19,151.65230573]
[1754887647389,0.06,186.2,186.19,152.37230573]
[1754887647792,0.06,186.24,186.21,41.10621557]
[1754887647985,0.06,186.24,186.21,93.95961467]
[1754887648296,0.06,186.24,186.21,94.67961467]
[1754887649983,0.06,186.24,186.21,184.27961467]
[1754887650180,0.06,186.24,186.21,183.74258659]
[1754887651384,0.06,186.24,186.21,135.38926065]
[1754887651587,0.06,186.24,186.21,151.65230573]
[1754887651790,0.06,186.24,186.21,178.33230573]
[1754887652100,0.06,186.24,186.21,157.70258659]
[1754887652517,0.06,186.24,186.21,183.70258659]
[1754887652725,0.06,186.24,186.21,172.96926065]
[1754887652894,0.66,186.23,186.21,172.96926065]
[1754887653087,0.06,186.24,186.21,172.96926065]
[1754887653289,0.06,186.24,186.21,178.33954151]
[1754887654020,0.72,186.22,186.21,109.38926065]
[1754887654201,0.72,186.22,186.21,42.26304508]
[1754887655313,0.72,186.22,186.21,47.63332594]
[1754887659808,0.72,186.22,186.21,42.26304508]